fUST/lending_fUST_20250220
["ID","MTS","AMOUNT","RATE_DAILY","PERIOD"]
[353718565,1739997051087,-1599.96,0.00014356,2]
[353718568,1739997051098,-7438.69753278,0.00014387,2]
[353718570,1739997051107,-151.0,0.000144,2]
[353718572,1739997051117,-151.0,0.000144,2]
[353718574,1739997051128,-179.67658215,0.000144,2]
[353718575,1739997051138,-1574.85,0.00014437,2]
[353718577,1739997051147,-500.0,0.00014438,2]
[353718579,1739997051156,-536.64,0.00014438,2]
[353718581,1739997051165,-500.0,0.00014438,2]
[353718583,1739997051175,-500.0,0.00014438,2]
[353718585,1739997051184,-500.0,0.00014438,2]
[353718587,1739997051194,-500.0,0.00014438,2]
[353718589,1739997051203,-500.0,0.00014438,2]
[353718591,1739997051212,-751.66,0.00014438,2]
[353718593,1739997051221,-500.0,0.00014438,2]
[353718595,1739997051230,-1115.62,0.00014438,2]
[353718597,1739997051240,-500.0,0.00014438,2]
[353718599,1739997051250,-685.96,0.00014438,2]
[353718601,1739997051260,-500.0,0.00014438,2]
[353718603,1739997051270,-500.0,0.00014438,2]
[353718605,1739997051279,-500.0,0.00014438,2]
[353718607,1739997051288,-629.75,0.00014438,2]
[353718609,1739997051297,-500.0,0.00014438,2]
[353718611,1739997051307,-547.55845176,0.00014438,2]
[353718613,1739997051316,-500.0,0.00014438,2]
[353718615,1739997051326,-3078.1,0.00014438,2]
[353718617,1739997051335,-500.0,0.00014438,2]
[353718619,1739997051345,-500.0,0.00014438,2]
[353718621,1739997051354,-500.0,0.00014438,2]
[353718622,1739997051365,-500.0,0.00014438,2]
[353718624,1739997051374,-500.0,0.00014438,2]
[353718626,1739997051384,-935.56,0.00014438,2]
[353718628,1739997051393,-500.0,0.00014438,2]
[353718630,1739997051402,-508.14,0.00014438,2]
[353718632,1739997051411,-500.0,0.00014438,2]
[353718634,1739997051421,-2163.51,0.00014438,2]
[353718636,1739997051430,-5889.74,0.00014438,2]
[353718638,1739997051439,-2330.03,0.00014438,2]
[353718640,1739997051449,-943.46,0.00014438,2]
[353718642,1739997051458,-1202.25,0.00014438,2]
[353718644,1739997051467,-10703.16,0.00014438,2]
[353718645,1739997051478,-2337.14,0.00014438,2]
[353718647,1739997051490,-1019.55,0.00014438,2]
[353718650,1739997051503,-500.0,0.00014438,2]
[353718651,1739997051512,-784.1,0.00014438,2]
[353718653,1739997051522,-500.0,0.00014438,2]
[353718655,1739997051532,-500.0,0.00014438,2]
[353718657,1739997051542,-562.5,0.00014438,2]
[353718659,1739997051552,-1420.15,0.00014438,2]
[353718661,1739997051563,-26142.93,0.00014438,2]
[353718664,1739997051575,-1234.83,0.00014438,2]
[353718666,1739997051585,-568.54,0.00014438,2]
[353718668,1739997051595,-1995.83,0.00014438,2]
[353718669,1739997051604,-1107.93,0.00014438,2]
[353718671,1739997051614,-2525.01,0.00014438,2]
[353718673,1739997051624,-2320.23,0.00014438,2]
[353718676,1739997051633,-965.51,0.00014438,2]
[353718678,1739997051643,-286.16828603,0.00014438,2]
[353718680,1739997051654,-532.58,0.00014438,2]
[353718681,1739997051664,-848.04,0.00014438,2]
[353718683,1739997051674,-1397.8,0.00014438,2]
[353718685,1739997051684,-10521.67,0.00014438,2]
[353718687,1739997051694,-420.76,0.00014438,2]
[353718690,1739997051704,-1211.33,0.00014438,2]
[353718692,1739997051714,-2761.91,0.00014438,2]
[353718694,1739997051724,-985.19,0.00014438,2]
[353718695,1739997051733,-500.0,0.00014438,2]
[353718697,1739997051743,-1566.42,0.00014438,2]
[353718699,1739997051753,-1154.72,0.00014438,2]
[353718701,1739997051762,-500.0,0.00014438,2]
[353718703,1739997051772,-1014.23,0.00014438,2]
[353718705,1739997051782,-940.03,0.00014438,2]
[353718707,1739997051792,-500.0,0.00014438,2]
[353718709,1739997051803,-1599.96,0.00014438,2]
[353718711,1739997051812,-700.0,0.00014438,2]
[353718713,1739997051821,-587.0,0.0001446,2]
[353718715,1739997051830,-224392.04207809,0.000145,2]
[353718717,1739997051840,-1574.85,0.00014519,2]
[353718719,1739997051850,-536.64,0.0001452,2]
[353718721,1739997051860,-500.0,0.0001452,2]
[353718723,1739997051870,-500.0,0.0001452,2]
[353718725,1739997051880,-500.0,0.0001452,2]
[353718727,1739997051889,-500.0,0.0001452,2]
[353718729,1739997051898,-751.66,0.0001452,2]
[353718731,1739997051908,-500.0,0.0001452,2]
[353718733,1739997051917,-1115.62,0.0001452,2]
[353718735,1739997051926,-500.0,0.0001452,2]
[353718736,1739997051935,-685.96,0.0001452,2]
[353718738,1739997051944,-500.0,0.0001452,2]
[353718740,1739997051953,-500.0,0.0001452,2]
[353718742,1739997051962,-629.75,0.0001452,2]
[353718744,1739997051971,-500.0,0.0001452,2]
[353718746,1739997051981,-500.0,0.0001452,2]
[353718748,1739997051990,-3078.1,0.0001452,2]
[353718750,1739997051999,-500.0,0.0001452,2]
[353718752,1739997052008,-500.0,0.0001452,2]
[353718754,1739997052018,-500.0,0.0001452,2]
[353718756,1739997052027,-500.0,0.0001452,2]
[353718758,1739997052036,-500.0,0.0001452,2]
[353718760,1739997052046,-935.56,0.0001452,2]
[353718762,1739997052055,-500.0,0.0001452,2]
[353718764,1739997052065,-508.14,0.0001452,2]
[353718766,1739997052075,-500.0,0.0001452,2]
[353718768,1739997052085,-2163.51,0.0001452,2]
[353718777,1739997052095,-5889.74,0.0001452,2]
[353718779,1739997052181,-2330.03,0.0001452,2]
[353718781,1739997052191,-943.46,0.0001452,2]
[353718783,1739997052202,-1202.25,0.0001452,2]
[353718785,1739997052212,-10703.16,0.0001452,2]
[353718787,1739997052223,-2337.14,0.0001452,2]
[353718789,1739997052233,-1019.55,0.0001452,2]
[353718791,1739997052243,-500.0,0.0001452,2]
[353718793,1739997052253,-784.1,0.0001452,2]
[353718795,1739997052262,-500.0,0.0001452,2]
[353718797,1739997052272,-500.0,0.0001452,2]
[353718799,1739997052282,-562.5,0.0001452,2]
[353718801,1739997052292,-1420.15,0.0001452,2]
[353718803,1739997052301,-26142.93,0.0001452,2]
[353718805,1739997052312,-1234.83,0.0001452,2]
[353718807,1739997052322,-568.54,0.0001452,2]
[353718809,1739997052332,-1995.83,0.0001452,2]
[353718811,1739997052342,-1107.93,0.0001452,2]
[353718813,1739997052351,-2525.01,0.0001452,2]
[353718815,1739997052361,-2320.23,0.0001452,2]
[353718817,1739997052370,-965.51,0.0001452,2]
[353718819,1739997052380,-532.58,0.0001452,2]
[353718821,1739997052390,-848.04,0.0001452,2]
[353718823,1739997052400,-1397.8,0.0001452,2]
[353718825,1739997052410,-10521.67,0.0001452,2]
[353718827,1739997052420,-1211.33,0.0001452,2]
[353718829,1739997052430,-2761.91,0.0001452,2]
[353718831,1739997052439,-985.19,0.0001452,2]
[353718833,1739997052449,-500.0,0.0001452,2]
[353718835,1739997052458,-1566.42,0.0001452,2]
[353718837,1739997052468,-1154.72,0.0001452,2]
[353718838,1739997052479,-500.0,0.0001452,2]
[353718839,1739997052490,-1014.23,0.0001452,2]
[353718840,1739997052501,-940.03,0.0001452,2]
[353718841,1739997052511,-500.0,0.0001452,2]
[353718842,1739997052521,-1599.96,0.0001452,2]
[353718843,1739997052532,-1000.0,0.00014521,2]
[353718844,1739997052543,-1000.0,0.00014521,2]
[353718845,1739997052554,-1000.0,0.00014521,2]
[353718846,1739997052563,-445.15234205,0.00014541,2]
[353718847,1739997052576,-466.97427313,0.0001456,2]
[353718848,1739997052586,-151.0,0.000146,2]
[353718849,1739997052596,-1574.85,0.00014601,2]
[353718850,1739997052606,-536.64,0.00014602,2]
[353718851,1739997052616,-500.0,0.00014602,2]
[353718852,1739997052626,-500.0,0.00014602,2]
[353718853,1739997052635,-434.62776549,0.00014602,2]
[353718854,1739997052644,-500.0,0.00014602,2]
[353718855,1739997052654,-751.66,0.00014602,2]
[353718857,1739997052664,-500.0,0.00014602,2]
[353718858,1739997052673,-1115.62,0.00014602,2]
[353718859,1739997052683,-500.0,0.00014602,2]
[353718861,1739997052693,-685.96,0.00014602,2]
[353718863,1739997052703,-500.0,0.00014602,2]
[353718865,1739997052712,-210.65,0.00014602,2]
[353718867,1739997052722,-629.75,0.00014602,2]
[353718869,1739997052732,-500.0,0.00014602,2]
[353718871,1739997052742,-500.0,0.00014602,2]
[353718873,1739997052752,-3078.1,0.00014602,2]
[353718876,1739997052762,-500.0,0.00014602,2]
[353718878,1739997052772,-500.0,0.00014602,2]
[353718880,1739997052782,-500.0,0.00014602,2]
[353718882,1739997052792,-500.0,0.00014602,2]
[353718884,1739997052802,-500.0,0.00014602,2]
[353718886,1739997052814,-935.56,0.00014602,2]
[353718888,1739997052824,-508.14,0.00014602,2]
[353718890,1739997052834,-500.0,0.00014602,2]
[353718892,1739997052843,-2163.51,0.00014602,2]
[353718894,1739997052853,-5889.74,0.00014602,2]
[353718896,1739997052863,-2330.03,0.00014602,2]
[353718898,1739997052873,-943.46,0.00014602,2]
[353718900,1739997052883,-1202.25,0.00014602,2]
[353718902,1739997052894,-10703.16,0.00014602,2]
[353718904,1739997052905,-2337.14,0.00014602,2]
[353718906,1739997052915,-1019.55,0.00014602,2]
[353718908,1739997052925,-598.75986233,0.00014602,2]
[353718910,1739997052934,-784.1,0.00014602,2]
[353718912,1739997052944,-500.0,0.00014602,2]
[353718914,1739997052953,-313.69026402,0.00014602,2]
[353718916,1739997052963,-562.5,0.00014602,2]
[353718918,1739997052973,-1420.15,0.00014602,2]
[353718920,1739997052983,-26142.93,0.00014602,2]
[353718922,1739997052992,-1234.83,0.00014602,2]
[353718924,1739997053002,-568.54,0.00014602,2]
[353718926,1739997053012,-1995.83,0.00014602,2]
[353718928,1739997053022,-1107.93,0.00014602,2]
[353718930,1739997053031,-2525.01,0.00014602,2]
[353718932,1739997053041,-2320.23,0.00014602,2]
[353718934,1739997053050,-965.51,0.00014602,2]
[353718936,1739997053059,-532.58,0.00014602,2]
[353718938,1739997053069,-848.04,0.00014602,2]
[353718940,1739997053078,-1397.8,0.00014602,2]
[353718942,1739997053087,-10521.67,0.00014602,2]
[353718944,1739997053097,-1211.33,0.00014602,2]
[353718946,1739997053107,-2761.91,0.00014602,2]
[353718948,1739997053117,-985.19,0.00014602,2]
[353718950,1739997053126,-500.0,0.00014602,2]
[353718952,1739997053136,-1566.42,0.00014602,2]
[353718954,1739997053145,-1154.72,0.00014602,2]
[353718956,1739997053155,-500.0,0.00014602,2]
[353718958,1739997053165,-1014.23,0.00014602,2]
[353718959,1739997053174,-940.03,0.00014602,2]
[353718961,1739997053184,-500.0,0.00014602,2]
[353718963,1739997053193,-1599.96,0.00014602,2]
[353718965,1739997053202,-1574.85,0.00014683,2]
[353718967,1739997053211,-536.64,0.00014684,2]
[353718969,1739997053221,-500.0,0.00014684,2]
[353718971,1739997053230,-280.74205564,0.00014684,2]
[353718973,1739997053240,-500.0,0.00014684,2]
[353718975,1739997053250,-751.66,0.00014684,2]
[353718977,1739997053259,-500.0,0.00014684,2]
[353718979,1739997053270,-1115.62,0.00014684,2]
[353718981,1739997053280,-500.0,0.00014684,2]
[353718983,1739997053290,-685.96,0.00014684,2]
[353718985,1739997053300,-500.0,0.00014684,2]
[353718987,1739997053310,-629.75,0.00014684,2]
[353718989,1739997053320,-500.0,0.00014684,2]
[353718991,1739997053330,-500.0,0.00014684,2]
[353718993,1739997053339,-3078.1,0.00014684,2]
[353718995,1739997053350,-500.0,0.00014684,2]
[353718997,1739997053359,-500.0,0.00014684,2]
[353718999,1739997053369,-500.0,0.00014684,2]
[353719001,1739997053379,-500.0,0.00014684,2]
[353719003,1739997053390,-500.0,0.00014684,2]
[353719005,1739997053400,-935.56,0.00014684,2]
[353719007,1739997053409,-508.14,0.00014684,2]
[353719009,1739997053418,-500.0,0.00014684,2]
[353719011,1739997053428,-2163.51,0.00014684,2]
[353719013,1739997053437,-5889.74,0.00014684,2]
[353719015,1739997053447,-2330.03,0.00014684,2]
[353719017,1739997053456,-943.46,0.00014684,2]
[353719019,1739997053466,-1202.25,0.00014684,2]
[353719021,1739997053476,-10703.16,0.00014684,2]
[353719023,1739997053486,-2337.14,0.00014684,2]
[353719025,1739997053499,-1019.55,0.00014684,2]
[353719027,1739997053508,-784.1,0.00014684,2]
[353719029,1739997053518,-500.0,0.00014684,2]
[353719031,1739997053527,-562.5,0.00014684,2]
[353719033,1739997053539,-1420.15,0.00014684,2]
[353719035,1739997053549,-26142.93,0.00014684,2]
[353719037,1739997053559,-1234.83,0.00014684,2]
[353719039,1739997053569,-568.54,0.00014684,2]
[353719041,1739997053579,-1995.83,0.00014684,2]
[353719043,1739997053588,-1107.93,0.00014684,2]
[353719045,1739997053598,-2525.01,0.00014684,2]
[353719047,1739997053608,-2320.23,0.00014684,2]
[353719049,1739997053617,-965.51,0.00014684,2]
[353719051,1739997053627,-532.58,0.00014684,2]
[353719053,1739997053637,-848.04,0.00014684,2]
[353719055,1739997053647,-1397.8,0.00014684,2]
[353719057,1739997053658,-10521.67,0.00014684,2]
[353719059,1739997053667,-1211.33,0.00014684,2]
[353719061,1739997053677,-2761.91,0.00014684,2]
[353719063,1739997053687,-985.19,0.00014684,2]
[353719065,1739997053697,-500.0,0.00014684,2]
[353719067,1739997053707,-1566.42,0.00014684,2]
[353719069,1739997053717,-1154.72,0.00014684,2]
[353719071,1739997053727,-500.0,0.00014684,2]
[353719081,1739997053816,-1014.23,0.00014684,2]
[353719083,1739997053827,-940.03,0.00014684,2]
[353719085,1739997053837,-500.0,0.00014684,2]
[353719088,1739997053847,-1599.96,0.00014684,2]
[353719089,1739997053856,-151.0,0.000147,2]
[353719091,1739997053866,-1000.0,0.00014721,2]
[353719093,1739997053875,-152.0,0.00014728,2]
[353719095,1739997053885,-758.235,0.0001475,2]
[353719097,1739997053894,-169.481,0.0001475,2]
[353719100,1739997053905,-1574.85,0.00014766,2]
[353719102,1739997053916,-1574.85,0.00014766,2]
[353719104,1739997053926,-1574.85,0.00014766,2]
[353719106,1739997053937,-1574.85,0.00014766,2]
[353719107,1739997053946,-1575.01781429,0.00014766,2]
[353719109,1739997053956,-536.64,0.00014767,2]
[353719112,1739997053966,-500.0,0.00014767,2]
[353719113,1739997053975,-500.0,0.00014767,2]
[353719115,1739997053984,-751.66,0.00014767,2]
[353719117,1739997053994,-327.93191629,0.00014767,2]
[353719119,1739997054004,-1115.62,0.00014767,2]
[353719121,1739997054013,-500.0,0.00014767,2]
[353719123,1739997054023,-685.96,0.00014767,2]
[353719125,1739997054033,-500.0,0.00014767,2]
[353719127,1739997054043,-629.75,0.00014767,2]
[353719130,1739997054053,-500.0,0.00014767,2]
[353719131,1739997054063,-500.0,0.00014767,2]
[353719134,1739997054074,-3078.1,0.00014767,2]
[353719136,1739997054083,-500.0,0.00014767,2]
[353719138,1739997054092,-500.0,0.00014767,2]
[353719140,1739997054102,-500.0,0.00014767,2]
[353719141,1739997054111,-500.0,0.00014767,2]
[353719144,1739997054121,-500.0,0.00014767,2]
[353719145,1739997054130,-935.56,0.00014767,2]
[353719148,1739997054139,-508.14,0.00014767,2]
[353719150,1739997054148,-500.0,0.00014767,2]
[353719152,1739997054158,-2163.51,0.00014767,2]
[353719153,1739997054167,-5889.74,0.00014767,2]
[353719155,1739997054176,-2330.03,0.00014767,2]
[353719157,1739997054186,-943.46,0.00014767,2]
[353719159,1739997054195,-1202.25,0.00014767,2]
[353719161,1739997054205,-10703.16,0.00014767,2]
[353719163,1739997054215,-2337.14,0.00014767,2]
[353719165,1739997054226,-1019.55,0.00014767,2]
[353719167,1739997054235,-784.1,0.00014767,2]
[353719170,1739997054246,-500.0,0.00014767,2]
[353719171,1739997054255,-562.5,0.00014767,2]
[353719174,1739997054265,-1420.15,0.00014767,2]
[353719175,1739997054275,-26142.93,0.00014767,2]
[353719177,1739997054284,-1234.83,0.00014767,2]
[353719180,1739997054294,-568.54,0.00014767,2]
[353719182,1739997054304,-1995.83,0.00014767,2]
[353719183,1739997054314,-1107.93,0.00014767,2]
[353719185,1739997054323,-2525.01,0.00014767,2]
[353719187,1739997054333,-2320.23,0.00014767,2]
[353719190,1739997054343,-965.51,0.00014767,2]
[353719192,1739997054353,-532.58,0.00014767,2]
[353719194,1739997054362,-848.04,0.00014767,2]
[353719196,1739997054371,-1397.8,0.00014767,2]
[353719198,1739997054382,-10521.67,0.00014767,2]
[353719200,1739997054391,-1211.33,0.00014767,2]
[353719201,1739997054401,-2761.91,0.00014767,2]
[353719203,1739997054411,-985.19,0.00014767,2]
[353719205,1739997054420,-500.0,0.00014767,2]
[353719207,1739997054429,-1566.42,0.00014767,2]
[353719209,1739997054439,-1154.72,0.00014767,2]
[353719212,1739997054448,-500.0,0.00014767,2]
[353719213,1739997054458,-1014.23,0.00014767,2]
[353719216,1739997054467,-940.03,0.00014767,2]
[353719218,1739997054477,-500.0,0.00014767,2]
[353719220,1739997054487,-1599.96,0.00014767,2]
[353719221,1739997054500,-1000.50517202,0.00014795,2]
[353719223,1739997054509,-151.0,0.000148,2]
[353719225,1739997054519,-151.0,0.000148,2]
[353719227,1739997054530,-445.15234205,0.000148,2]
[353719229,1739997054541,-536.64,0.00014849,2]
[353719231,1739997054551,-500.0,0.00014849,2]
[353719233,1739997054561,-500.0,0.00014849,2]
[353719236,1739997054572,-751.66,0.00014849,2]
[353719237,1739997054582,-1115.62,0.00014849,2]
[353719240,1739997054592,-393.1319771,0.00014849,2]
[353719241,1739997054602,-685.96,0.00014849,2]
[353719244,1739997054612,-500.0,0.00014849,2]
[353719246,1739997054622,-629.75,0.00014849,2]
[353719248,1739997054631,-500.0,0.00014849,2]
[353719250,1739997054641,-500.0,0.00014849,2]
[353719252,1739997054652,-3078.1,0.00014849,2]
[353719254,1739997054662,-384.42,0.00014849,2]
[353719256,1739997054672,-500.0,0.00014849,2]
[353719258,1739997054681,-500.0,0.00014849,2]
[353719260,1739997054691,-500.0,0.00014849,2]
[353719262,1739997054700,-500.0,0.00014849,2]
[353719264,1739997054710,-935.56,0.00014849,2]
[353719266,1739997054719,-508.14,0.00014849,2]
[353719268,1739997054729,-500.0,0.00014849,2]
[353719270,1739997054739,-2163.51,0.00014849,2]
[353719272,1739997054749,-5889.74,0.00014849,2]
[353719274,1739997054759,-2330.03,0.00014849,2]
[353719276,1739997054768,-943.46,0.00014849,2]
[353719278,1739997054778,-1202.25,0.00014849,2]
[353719280,1739997054790,-10703.16,0.00014849,2]
[353719282,1739997054800,-2337.14,0.00014849,2]
[353719284,1739997054810,-1019.55,0.00014849,2]
[353719286,1739997054820,-784.1,0.00014849,2]
[353719288,1739997054829,-500.0,0.00014849,2]
[353719290,1739997054839,-562.5,0.00014849,2]
[353719292,1739997054848,-1420.15,0.00014849,2]
[353719294,1739997054858,-26142.93,0.00014849,2]
[353719296,1739997054868,-1234.83,0.00014849,2]
[353719298,1739997054877,-568.54,0.00014849,2]
[353719300,1739997054887,-1995.83,0.00014849,2]
[353719302,1739997054896,-1107.93,0.00014849,2]
[353719304,1739997054907,-2525.01,0.00014849,2]
[353719306,1739997054918,-2320.23,0.00014849,2]
[353719308,1739997054928,-965.51,0.00014849,2]
[353719310,1739997054937,-532.58,0.00014849,2]
[353719312,1739997054947,-848.04,0.00014849,2]
[353719314,1739997054956,-1397.8,0.00014849,2]
[353719316,1739997054965,-10521.67,0.00014849,2]
[353719318,1739997054975,-1211.33,0.00014849,2]
[353719320,1739997054984,-2761.91,0.00014849,2]
[353719322,1739997054994,-985.19,0.00014849,2]
[353719324,1739997055003,-500.0,0.00014849,2]
[353719325,1739997055013,-1566.42,0.00014849,2]
[353719328,1739997055023,-1154.72,0.00014849,2]
[353719330,1739997055033,-500.0,0.00014849,2]
[353719332,1739997055042,-1014.23,0.00014849,2]
[353719334,1739997055051,-940.03,0.00014849,2]
[353719336,1739997055061,-500.0,0.00014849,2]
[353719338,1739997055070,-1599.96,0.00014849,2]
[353719340,1739997055079,-500.0,0.00014873,2]
[353719342,1739997055089,-500.0,0.00014873,2]
[353719343,1739997055098,-306.58259879,0.00014873,2]
[353719345,1739997055108,-500.0,0.00014873,2]
[353719347,1739997055117,-500.0,0.00014873,2]
[353719349,1739997055127,-500.0,0.00014873,2]
[353719350,1739997055136,-151.0,0.000149,2]
[353719352,1739997055146,-432.45843681,0.000149,2]
[353719354,1739997055158,-432.45843679,0.000149,2]
[353719356,1739997055168,-432.45843679,0.000149,2]
[353719358,1739997055178,-655000.704145,0.000149,2]
[353719360,1739997055187,-11673.75561442,0.000149,2]
[353719362,1739997055196,-536.64,0.00014931,2]
[353719363,1739997055205,-500.0,0.00014931,2]
[353719365,1739997055215,-500.0,0.00014931,2]
[353719367,1739997055225,-751.66,0.00014931,2]
[353719375,1739997055303,-1115.62,0.00014931,2]
[353719376,1739997055314,-685.96,0.00014931,2]
[353719378,1739997055324,-642.59,0.00014931,2]
[353719380,1739997055333,-629.75,0.00014931,2]
[353719382,1739997055343,-500.0,0.00014931,2]
[353719384,1739997055353,-500.0,0.00014931,2]
[353719386,1739997055363,-3078.1,0.00014931,2]
[353719388,1739997055372,-500.0,0.00014931,2]
[353719390,1739997055382,-150.73428323,0.00014931,2]
[353719392,1739997055392,-500.0,0.00014931,2]
[353719393,1739997055403,-500.0,0.00014931,2]
[353719395,1739997055414,-935.56,0.00014931,2]
[353719397,1739997055422,-508.14,0.00014931,2]
[353719399,1739997055432,-500.0,0.00014931,2]
[353719401,1739997055442,-2163.51,0.00014931,2]
[353719403,1739997055451,-5889.74,0.00014931,2]
[353719404,1739997055461,-2330.03,0.00014931,2]
[353719406,1739997055471,-943.46,0.00014931,2]
[353719408,1739997055481,-1202.25,0.00014931,2]
[353719410,1739997055492,-10703.16,0.00014931,2]
[353719412,1739997055503,-2337.14,0.00014931,2]
[353719413,1739997055513,-1019.55,0.00014931,2]
[353719415,1739997055523,-784.1,0.00014931,2]
[353719417,1739997055532,-602.76475227,0.00014931,2]
[353719419,1739997055543,-562.5,0.00014931,2]
[353719421,1739997055552,-1420.15,0.00014931,2]
[353719423,1739997055562,-26142.93,0.00014931,2]
[353719425,1739997055573,-1234.83,0.00014931,2]
[353719427,1739997055583,-568.54,0.00014931,2]
[353719428,1739997055594,-1995.83,0.00014931,2]
[353719430,1739997055603,-1107.93,0.00014931,2]
[353719432,1739997055612,-2525.01,0.00014931,2]
[353719434,1739997055622,-2320.23,0.00014931,2]
[353719436,1739997055632,-965.51,0.00014931,2]
[353719438,1739997055642,-532.58,0.00014931,2]
[353719440,1739997055652,-848.04,0.00014931,2]
[353719441,1739997055662,-1397.8,0.00014931,2]
[353719443,1739997055671,-10521.67,0.00014931,2]
[353719445,1739997055681,-1211.33,0.00014931,2]
[353719447,1739997055691,-2761.91,0.00014931,2]
[353719449,1739997055700,-985.19,0.00014931,2]
[353719451,1739997055709,-500.0,0.00014931,2]
[353719452,1739997055719,-1566.42,0.00014931,2]
[353719454,1739997055729,-1154.72,0.00014931,2]
[353719456,1739997055739,-500.0,0.00014931,2]
[353719458,1739997055748,-1014.23,0.00014931,2]
[353719460,1739997055758,-940.03,0.00014931,2]
[353719462,1739997055768,-500.0,0.00014931,2]
[353719464,1739997055778,-1599.96,0.00014931,2]
[353719466,1739997055787,-1002.2170681,0.00015,2]
[353719467,1739997055797,-113401.81468915,0.00015,2]
[353719469,1739997055807,-845.977203,0.00015,2]
[353719471,1739997055818,-17003.0,0.00015,2]
[353719473,1739997055828,-536.64,0.00015013,2]
[353719475,1739997055838,-500.0,0.00015013,2]
[353719477,1739997055847,-500.0,0.00015013,2]
[353719478,1739997055857,-751.66,0.00015013,2]
[353719481,1739997055868,-1115.62,0.00015013,2]
[353719482,1739997055882,-685.96,0.00015013,2]
[353719484,1739997055892,-629.75,0.00015013,2]
[353719486,1739997055902,-500.0,0.00015013,2]
[353719488,1739997055912,-500.0,0.00015013,2]
[353719490,1739997055922,-3078.1,0.00015013,2]
[353719492,1739997055931,-500.0,0.00015013,2]
[353719494,1739997055940,-500.0,0.00015013,2]
[353719495,1739997055950,-198.4749384,0.00015013,2]
[353719497,1739997055960,-935.56,0.00015013,2]
[353719499,1739997055970,-508.14,0.00015013,2]
[353719501,1739997055979,-500.0,0.00015013,2]
[353719503,1739997055989,-2163.51,0.00015013,2]
[353719505,1739997055998,-5889.74,0.00015013,2]
[353719507,1739997056008,-2330.03,0.00015013,2]
[353719509,1739997056019,-943.46,0.00015013,2]
[353719511,1739997056029,-1202.25,0.00015013,2]
[353719513,1739997056038,-10703.16,0.00015013,2]
[353719515,1739997056048,-2337.14,0.00015013,2]
[353719516,1739997056058,-1019.55,0.00015013,2]
[353719518,1739997056067,-784.1,0.00015013,2]
[353719520,1739997056076,-562.5,0.00015013,2]
[353719522,1739997056086,-1420.15,0.00015013,2]
[353719524,1739997056097,-26142.93,0.00015013,2]
[353719526,1739997056106,-1234.83,0.00015013,2]
[353719528,1739997056116,-568.54,0.00015013,2]
[353719530,1739997056126,-1995.83,0.00015013,2]
[353719532,1739997056135,-1107.93,0.00015013,2]
[353719534,1739997056145,-2525.01,0.00015013,2]
[353719536,1739997056156,-965.51,0.00015013,2]
[353719538,1739997056165,-2320.23,0.00015013,2]
[353719539,1739997056175,-532.58,0.00015013,2]
[353719541,1739997056184,-848.04,0.00015013,2]
[353719543,1739997056194,-1397.8,0.00015013,2]
[353719545,1739997056203,-10521.67,0.00015013,2]
[353719547,1739997056213,-1211.33,0.00015013,2]